[Event "Championnat du monde jeunes U12F"]
[Date "2024.11.20"]
[White "Zavivaeva, Angelina"]
[Black "Harutyunyan, Gabriela"]
[WhiteElo "1499"]
[BlackElo "1730"]
[Round "6.24"]
[Result "0-1"]
[TimeControl "5400+30"]

1. e4 {[%clk 1:30:59]} 1... c5 {[%clk 1:30:35]} 2. Nf3 {[%clk 1:31:23]} 2... Nc6
{[%clk 1:30:52]} 3. d4 {[%clk 1:31:42]} 3... cxd4 {[%clk 1:31:14]} 4. Nxd4
{[%clk 1:32:06]} 4... Nf6 {[%clk 1:31:33]} 5. Nc3 {[%clk 1:32:30]} 5... e6
{[%clk 1:31:49]} 6. Ndb5 {[%clk 1:32:54]} 6... Bb4 {[%clk 1:31:48]} 7. a3 {[%clk
1:29:20]} 7... Bxc3+ {[%clk 1:31:37]} 8. Nxc3 {[%clk 1:29:33]} 8... d5 {[%clk
1:30:48]} 9. exd5 {[%clk 1:29:13]} 9... exd5 {[%clk 1:30:47]} 10. Bg5 {[%clk
1:25:47]} 10... O-O {[%clk 1:28:59]} 11. Be2 {[%clk 1:18:06]} 11... Re8 {[%clk
1:21:27]} 12. O-O {[%clk 1:01:55]} 12... d4 {[%clk 1:18:59]} 13. Na2 {[%clk
0:47:55]} 13... Bf5 {[%clk 1:13:28]} 14. Re1 {[%clk 0:42:08]} 14... Qd6 {[%clk
1:10:27]} 15. Bxf6 {[%clk 0:34:50]} 15... Qxf6 {[%clk 1:10:10]} 16. Qd2 {[%clk
0:34:58]} 16... Qg6 {[%clk 1:04:08]} 17. Nb4 {[%clk 0:23:53]} 17... Rad8 {[%clk
0:53:02]} 18. Nd3 {[%clk 0:17:33]} 18... h6 {[%clk 0:46:59]} 19. Rad1 {[%clk
0:15:08]} 19... Qf6 {[%clk 0:43:33]} 20. Bf3 {[%clk 0:08:31]} 20... Rxe1+ {[%clk
0:37:45]} 21. Rxe1 {[%clk 0:07:09]} 21... Bxd3 {[%clk 0:34:45]} 22. Qxd3 {[%clk
0:04:49]} 22... Ne5 {[%clk 0:34:32]} 23. Qe4 {[%clk 0:04:21]} 23... Re8 {[%clk
0:33:40]} 24. Kf1 {[%clk 0:03:15]} 24... Re7 {[%clk 0:26:11]} 25. Qxd4 {[%clk
0:01:07]} 25... Qa6+ {[%clk 0:23:40]} 26. Be2 {[%clk 0:01:04]} 26... Qa5 {[%clk
0:19:52]} 27. c3 {[%clk 0:00:39]} 27... Nc6 {[%clk 0:19:17]} 28. Qd2 {[%clk
0:00:35]} 28... Qc7 {[%clk 0:19:18]} 29. Kg1 {[%clk 0:00:42]} 29... Ne5 {[%clk
0:19:04]} 30. h3 {[%clk 0:00:38]} 30... Qc6 {[%clk 0:18:09]} 31. Rd1 {[%clk
0:00:36]} 31... Ng6 {[%clk 0:17:35]} 32. Bf3 {[%clk 0:00:47]} 32... Qf6 {[%clk
0:17:51]} 33. Qd4 {[%clk 0:00:43]} 33... Ne5 {[%clk 0:17:35]} 34. Qe4 {[%clk
0:00:35]} 34... Nc6 {[%clk 0:17:14]} 35. Qc2 {[%clk 0:00:38]} 35... g6 {[%clk
0:16:13]} 36. Qd2 {[%clk 0:00:39]} 36... Ne5 {[%clk 0:16:10]} 37. Be2 {[%clk
0:00:43]} 37... Kg7 {[%clk 0:16:14]} 38. Qc2 {[%clk 0:00:34]} 38... Rc7 {[%clk
0:14:37]} 39. Qe4 {[%clk 0:00:41]} 39... Re7 {[%clk 0:14:26]} 40. Qc2 {[%clk
0:00:34]} 40... Rc7 {[%clk 0:14:19]} 41. Rd4 {[%clk 0:00:36]} 41... Nf3+ {[%clk
0:14:04]} 42. Bxf3 {[%clk 0:00:34]} 42... Qxd4 {[%clk 0:14:28]} 43. Qe2 {[%clk
0:00:49]} 43... Qf6 {[%clk 0:14:47]} 44. Qd2 {[%clk 0:00:35]} 44... b6 {[%clk
0:15:10]} 45. Be2 {[%clk 0:00:41]} 45... Re7 {[%clk 0:15:12]} 0-1

[Variant "Standard"]
[Site "Europe Echecs"]

[Event "Championnat du monde jeunes U12F"]
[Date "2024.11.20"]
[White "Li, Peishan"]
[Black "Sri Darshini T"]
[WhiteElo "1729"]
[BlackElo "1681"]
[Round "6.25"]
[Result "1/2-1/2"]
[TimeControl "5400+30"]

1. e4 {[%clk 1:30:58]} 1... c5 {[%clk 1:30:57]} 2. Nf3 {[%clk 1:31:23]} 2... Nc6
{[%clk 1:31:21]} 3. d4 {[%clk 1:31:49]} 3... cxd4 {[%clk 1:31:47]} 4. Nxd4
{[%clk 1:32:17]} 4... Nf6 {[%clk 1:32:10]} 5. Nc3 {[%clk 1:32:43]} 5... e5
{[%clk 1:32:38]} 6. Ndb5 {[%clk 1:33:09]} 6... d6 {[%clk 1:33:02]} 7. Bg5 {[%clk
1:33:35]} 7... a6 {[%clk 1:33:29]} 8. Na3 {[%clk 1:34:00]} 8... b5 {[%clk
1:33:56]} 9. Nd5 {[%clk 1:34:25]} 9... Be7 {[%clk 1:34:23]} 10. Bxf6 {[%clk
1:34:49]} 10... Bxf6 {[%clk 1:34:50]} 11. c3 {[%clk 1:35:14]} 11... O-O {[%clk
1:35:14]} 12. Nc2 {[%clk 1:35:40]} 12... Bg5 {[%clk 1:35:41]} 13. a4 {[%clk
1:35:11]} 13... bxa4 {[%clk 1:35:36]} 14. Rxa4 {[%clk 1:35:08]} 14... a5 {[%clk
1:36:01]} 15. Bc4 {[%clk 1:33:54]} 15... Rb8 {[%clk 1:36:26]} 16. b3 {[%clk
1:33:46]} 16... Kh8 {[%clk 1:36:34]} 17. Nce3 {[%clk 1:33:04]} 17... g6 {[%clk
1:36:54]} 18. O-O {[%clk 1:26:11]} 18... f5 {[%clk 1:37:18]} 19. exf5 {[%clk
1:16:19]} 19... gxf5 {[%clk 1:35:45]} 20. Be2 {[%clk 1:06:24]} 20... Be6 {[%clk
1:24:43]} 21. Nc4 {[%clk 0:55:55]} 21... Bh6 {[%clk 1:06:55]} 22. b4 {[%clk
0:49:30]} 22... axb4 {[%clk 1:02:06]} 23. Nxb4 {[%clk 0:49:23]} 23... Nxb4
{[%clk 0:59:56]} 24. cxb4 {[%clk 0:46:13]} 24... Qd7 {[%clk 0:55:36]} 25. Ra6
{[%clk 0:39:03]} 25... Rfd8 {[%clk 0:49:23]} 26. Nxe5 {[%clk 0:28:46]} 26...
dxe5 {[%clk 0:46:17]} 27. Qxd7 {[%clk 0:29:13]} 27... Bxd7 {[%clk 0:43:59]} 28.
Rxh6 {[%clk 0:29:38]} 28... Bb5 {[%clk 0:42:53]} 29. Bxb5 {[%clk 0:30:00]} 29...
Rxb5 {[%clk 0:43:18]} 30. Rh5 {[%clk 0:26:41]} 30... e4 {[%clk 0:42:15]} 31. g4
{[%clk 0:23:23]} 31... Rxb4 {[%clk 0:39:53]} 32. gxf5 {[%clk 0:17:49]} 32... Rb5
{[%clk 0:34:52]} 33. Re1 {[%clk 0:16:07]} 33... Rf8 {[%clk 0:34:32]} 34. Rxe4
{[%clk 0:15:35]} 34... Rbxf5 {[%clk 0:34:50]} 35. Rxf5 {[%clk 0:15:58]} 35...
Rxf5 {[%clk 0:35:15]} 36. Rg4 {[%clk 0:16:04]} 36... Ra5 {[%clk 0:34:31]} 37.
Kg2 {[%clk 0:16:17]} 37... h5 {[%clk 0:33:28]} 38. Rg3 {[%clk 0:16:38]} 38...
Kh7 {[%clk 0:33:09]} 39. Kf3 {[%clk 0:16:57]} 39... Ra4 {[%clk 0:33:06]} 40. Ke3
{[%clk 0:15:48]} 40... Kh6 {[%clk 0:31:25]} 41. Kf3 {[%clk 0:13:27]} 41... Ra3+
{[%clk 0:30:22]} 42. Kg2 {[%clk 0:13:42]} 42... Ra4 {[%clk 0:30:23]} 43. h3
{[%clk 0:13:26]} 43... Rb4 {[%clk 0:30:27]} 44. Rg8 {[%clk 0:13:45]} 44... Kh7
{[%clk 0:30:36]} 45. Re8 {[%clk 0:12:51]} 45... Kg6 {[%clk 0:30:41]} 46. Re5
{[%clk 0:13:18]} 46... Ra4 {[%clk 0:28:39]} 47. Kg3 {[%clk 0:13:28]} 47... Ra3+
{[%clk 0:26:41]} 48. f3 {[%clk 0:12:36]} 48... Rb3 {[%clk 0:26:43]} 49. Kf4
{[%clk 0:12:14]} 49... Rb4+ {[%clk 0:26:52]} 50. Re4 {[%clk 0:12:36]} 50... Rb6
{[%clk 0:26:52]} 51. Rd4 {[%clk 0:11:31]} 51... Rf6+ {[%clk 0:25:56]} 52. Kg3
{[%clk 0:11:27]} 52... Ra6 {[%clk 0:26:10]} 53. Kh4 {[%clk 0:11:14]} 53... Ra3
{[%clk 0:22:15]} 54. Rf4 {[%clk 0:08:19]} 54... Rb3 {[%clk 0:20:51]} 55. Kg3
{[%clk 0:08:22]} 55... Ra3 {[%clk 0:20:47]} 56. Rd4 {[%clk 0:08:31]} 56... Ra6
{[%clk 0:21:00]} 57. Rd3 {[%clk 0:08:57]} 57... Rb6 {[%clk 0:19:54]} 58. f4
{[%clk 0:09:22]} 58... Rb4 {[%clk 0:18:31]} 59. Kf3 {[%clk 0:09:15]} 59... Ra4
{[%clk 0:16:18]} 60. Ke3 {[%clk 0:09:21]} 60... Ra6 {[%clk 0:14:28]} 61. h4
{[%clk 0:08:22]} 61... Kf5 {[%clk 0:07:25]} 62. Rd5+ {[%clk 0:08:48]} 62... Kg6
{[%clk 0:07:17]} 63. Ke4 {[%clk 0:08:59]} 63... Re6+ {[%clk 0:06:54]} 64. Re5
{[%clk 0:09:19]} 64... Ra6 {[%clk 0:07:10]} 65. Rg5+ {[%clk 0:08:41]} 65... Kh6
{[%clk 0:07:37]} 66. Rd5 {[%clk 0:08:36]} 66... Kg6 {[%clk 0:04:53]} 67. Ke5
{[%clk 0:08:56]} 67... Ra8 {[%clk 0:04:40]} 68. f5+ {[%clk 0:08:14]} 68... Kg7
{[%clk 0:02:23]} 69. Rd7+ {[%clk 0:07:33]} 69... Kh6 {[%clk 0:02:27]} 70. Rd4
{[%clk 0:02:31]} 70... Re8+ {[%clk 0:01:30]} 71. Kf6 {[%clk 0:02:53]} 71... Rf8+
{[%clk 0:01:55]} 72. Ke6 {[%clk 0:03:13]} 72... Kg7 {[%clk 0:02:07]} 73. Rd7+
{[%clk 0:03:39]} 73... Kh6 {[%clk 0:02:33]} 74. Rd6 {[%clk 0:03:17]} 74... Kg7
{[%clk 0:02:44]} 75. Ke5 {[%clk 0:03:44]} 75... Ra8 {[%clk 0:02:39]} 76. Kf4
{[%clk 0:04:01]} 76... Ra5 {[%clk 0:01:10]} 77. Kg5 {[%clk 0:04:25]} 77... Kf7
{[%clk 0:00:56]} 78. Rd7+ {[%clk 0:04:51]} 78... Kf8 {[%clk 0:00:41]} 79. Rb7
{[%clk 0:05:04]} 79... Rc5 {[%clk 0:00:51]} 80. Kg6 {[%clk 0:05:29]} 80... Rc6+
{[%clk 0:00:38]} 81. f6 {[%clk 0:05:46]} 81... Rc8 {[%clk 0:01:02]} 82. Kxh5
{[%clk 0:06:08]} 82... Rc4 {[%clk 0:01:06]} 83. Kg5 {[%clk 0:06:32]} 83... Rc1
{[%clk 0:01:22]} 84. h5 {[%clk 0:06:37]} 84... Rg1+ {[%clk 0:01:44]} 85. Kf5
{[%clk 0:07:01]} 85... Rf1+ {[%clk 0:02:09]} 86. Kg6 {[%clk 0:07:28]} 86... Rg1+
{[%clk 0:02:36]} 87. Kh7 {[%clk 0:07:43]} 87... Rf1 {[%clk 0:02:52]} 88. Kg6
{[%clk 0:05:16]} 88... Rg1+ {[%clk 0:03:16]} 89. Kf5 {[%clk 0:05:29]} 89... Rf1+
{[%clk 0:03:30]} 90. Ke5 {[%clk 0:05:19]} 90... Re1+ {[%clk 0:03:48]} 91. Kf4
{[%clk 0:04:43]} 91... Rf1+ {[%clk 0:04:11]} 92. Kg5 {[%clk 0:05:10]} 92... Rg1+
{[%clk 0:04:37]} 93. Kh6 {[%clk 0:05:27]} 93... Rf1 {[%clk 0:05:03]} 94. Kg6
{[%clk 0:04:39]} 94... Rg1+ {[%clk 0:05:27]} 95. Kh7 {[%clk 0:05:06]} 95... Rf1
{[%clk 0:05:36]} 96. Rb6 {[%clk 0:05:32]} 96... Kf7 {[%clk 0:05:28]} 97. h6
{[%clk 0:05:49]} 97... Rh1 {[%clk 0:05:33]} 98. Ra6 {[%clk 0:06:02]} 98... Rh2
{[%clk 0:05:53]} 99. Ra1 {[%clk 0:04:22]} 99... Kxf6 {[%clk 0:05:59]} 100. Rf1+
{[%clk 0:04:49]} 100... Ke7 {[%clk 0:06:12]} 101. Rf3 {[%clk 0:05:02]} 101...
Rh1 {[%clk 0:06:18]} 102. Rf5 {[%clk 0:04:59]} 102... Rh2 {[%clk 0:06:00]} 103.
Kg7 {[%clk 0:04:18]} 103... Rg2+ {[%clk 0:06:02]} 104. Kh8 {[%clk 0:04:32]}
104... Rh2 {[%clk 0:06:23]} 105. h7 {[%clk 0:04:46]} 105... Rg2 {[%clk 0:06:14]}
106. Ra5 {[%clk 0:05:06]} 106... Kf7 {[%clk 0:04:57]} 107. Ra8 {[%clk 0:05:15]}
107... Rg1 {[%clk 0:04:56]} 108. Rg8 {[%clk 0:05:30]} 108... Rf1 {[%clk
0:05:15]} 109. Rg2 {[%clk 0:05:48]} 109... Rf3 {[%clk 0:05:30]} 110. Rg7+ {[%clk
0:06:01]} 110... Kf8 {[%clk 0:05:53]} 1/2-1/2

[Variant "Standard"]
[Site "Europe Echecs"]

[Event "Championnat du monde jeunes U12F"]
[Date "2024.11.20"]
[White "Xikmatkhonova, Mokhinur"]
[Black "Budhram, Kaylee"]
[WhiteElo "1726"]
[BlackElo "1614"]
[Round "6.26"]
[Result "1-0"]
[TimeControl "5400+30"]

1. d4 {[%clk 1:30:26]} 1... d5 {[%clk 1:30:53]} 2. Nc3 {[%clk 1:30:49]} 2... c5
{[%clk 1:30:35]} 3. e3 {[%clk 1:30:03]} 3... Nf6 {[%clk 1:30:42]} 4. Nf3 {[%clk
1:30:17]} 4... Bg4 {[%clk 1:29:29]} 5. Be2 {[%clk 1:29:19]} 5... e6 {[%clk
1:29:29]} 6. h3 {[%clk 1:27:16]} 6... Bh5 {[%clk 1:29:27]} 7. O-O {[%clk
1:26:59]} 7... Be7 {[%clk 1:28:45]} 8. Ne5 {[%clk 1:15:49]} 8... Bxe2 {[%clk
1:28:27]} 9. Nxe2 {[%clk 1:13:38]} 9... O-O {[%clk 1:27:38]} 10. c4 {[%clk
1:10:27]} 10... Nbd7 {[%clk 1:19:53]} 11. Nxd7 {[%clk 1:06:16]} 11... Qxd7
{[%clk 1:19:56]} 12. cxd5 {[%clk 1:06:10]} 12... exd5 {[%clk 1:10:48]} 13. b3
{[%clk 1:05:22]} 13... Ne4 {[%clk 1:04:47]} 14. Bb2 {[%clk 1:02:51]} 14... cxd4
{[%clk 1:04:40]} 15. Bxd4 {[%clk 0:58:29]} 15... Bf6 {[%clk 1:04:38]} 16. f3
{[%clk 0:52:12]} 16... Bxd4 {[%clk 1:03:36]} 17. Qxd4 {[%clk 0:48:08]} 17... Nf6
{[%clk 1:02:14]} 18. Rfd1 {[%clk 0:41:54]} 18... b6 {[%clk 0:59:42]} 19. e4
{[%clk 0:37:54]} 19... Rfd8 {[%clk 0:54:47]} 20. e5 {[%clk 0:36:15]} 20... Ne8
{[%clk 0:54:59]} 21. f4 {[%clk 0:24:22]} 21... Nc7 {[%clk 0:53:52]} 22. b4
{[%clk 0:18:16]} 22... Ne6 {[%clk 0:49:56]} 23. Qd3 {[%clk 0:16:02]} 23... Rac8
{[%clk 0:47:18]} 24. f5 {[%clk 0:15:43]} 24... Nc7 {[%clk 0:47:07]} 25. f6
{[%clk 0:08:12]} 25... g6 {[%clk 0:44:38]} 26. Nd4 {[%clk 0:05:43]} 26... Ne8
{[%clk 0:38:30]} 27. Rf1 {[%clk 0:05:29]} 27... h5 {[%clk 0:21:15]} 28. Rae1
{[%clk 0:02:42]} 28... Nc7 {[%clk 0:15:37]} 29. e6 {[%clk 0:01:47]} 29... Nxe6
{[%clk 0:15:45]} 30. Rxe6 {[%clk 0:00:40]} 30... fxe6 {[%clk 0:15:18]} 31. Qxg6+
{[%clk 0:01:04]} 31... Kh8 {[%clk 0:15:21]} 32. f7 {[%clk 0:01:19]} 32... e5
{[%clk 0:13:22]} 33. Qh6# {[%clk 0:01:33]} 1-0

[Variant "Standard"]
[Site "Europe Echecs"]

[Event "Championnat du monde jeunes U12F"]
[Date "2024.11.20"]
[White "Kovalskyy, Alicia"]
[Black "Muradova, Nebahat"]
[WhiteElo "1871"]
[BlackElo "1626"]
[Round "6.27"]
[Result "1/2-1/2"]
[TimeControl "5400+30"]

1. e4 {[%clk 1:30:59]} 1... e6 {[%clk 1:30:55]} 2. d4 {[%clk 1:31:26]} 2... d5
{[%clk 1:31:18]} 3. Nc3 {[%clk 1:31:51]} 3... a6 {[%clk 1:31:43]} 4. a3 {[%clk
1:29:05]} 4... Nc6 {[%clk 1:30:22]} 5. e5 {[%clk 1:25:02]} 5... Bd7 {[%clk
1:27:12]} 6. Nf3 {[%clk 1:22:01]} 6... Nge7 {[%clk 1:25:41]} 7. Be2 {[%clk
1:18:23]} 7... Ng6 {[%clk 1:24:37]} 8. Be3 {[%clk 1:14:52]} 8... Nce7 {[%clk
1:23:34]} 9. Bd3 {[%clk 1:10:27]} 9... c6 {[%clk 1:21:19]} 10. O-O {[%clk
0:59:40]} 10... Nf5 {[%clk 1:20:56]} 11. Qd2 {[%clk 0:52:42]} 11... Be7 {[%clk
1:18:24]} 12. Rfe1 {[%clk 0:47:27]} 12... O-O {[%clk 1:16:41]} 13. Bxf5 {[%clk
0:36:40]} 13... exf5 {[%clk 1:13:36]} 14. Bg5 {[%clk 0:35:42]} 14... Bxg5 {[%clk
1:09:53]} 15. Qxg5 {[%clk 0:32:19]} 15... Qc7 {[%clk 1:04:21]} 16. Qd2 {[%clk
0:24:24]} 16... Be6 {[%clk 1:03:05]} 17. Ng5 {[%clk 0:20:14]} 17... Qe7 {[%clk
0:57:26]} 18. Ne2 {[%clk 0:17:54]} 18... h6 {[%clk 0:56:36]} 19. Nf3 {[%clk
0:16:54]} 19... Rac8 {[%clk 0:53:15]} 20. c3 {[%clk 0:14:09]} 20... c5 {[%clk
0:52:57]} 21. Ng3 {[%clk 0:11:10]} 21... c4 {[%clk 0:50:34]} 22. a4 {[%clk
0:10:15]} 22... Qd7 {[%clk 0:49:03]} 23. Nh5 {[%clk 0:07:28]} 23... Qe7 {[%clk
0:45:44]} 24. Kh1 {[%clk 0:04:57]} 24... Rfd8 {[%clk 0:43:49]} 25. Nf4 {[%clk
0:04:18]} 25... Nxf4 {[%clk 0:44:06]} 26. Qxf4 {[%clk 0:04:44]} 26... b5 {[%clk
0:44:19]} 27. Qd2 {[%clk 0:04:06]} 27... Rb8 {[%clk 0:44:15]} 28. axb5 {[%clk
0:03:13]} 28... axb5 {[%clk 0:44:33]} 29. Ra5 {[%clk 0:03:09]} 29... b4 {[%clk
0:44:04]} 30. h3 {[%clk 0:01:53]} 30... bxc3 {[%clk 0:44:29]} 31. bxc3 {[%clk
0:01:57]} 31... Rb3 {[%clk 0:44:32]} 32. Qc2 {[%clk 0:02:18]} 32... Rdb8 {[%clk
0:44:50]} 33. Ra2 {[%clk 0:02:44]} 33... Qd7 {[%clk 0:43:26]} 34. Nd2 {[%clk
0:03:00]} 34... R3b7 {[%clk 0:43:40]} 35. Rb1 {[%clk 0:03:13]} 35... Rxb1+
{[%clk 0:43:29]} 36. Nxb1 {[%clk 0:03:39]} 36... f4 {[%clk 0:43:33]} 37. f3
{[%clk 0:03:49]} 37... Bf5 {[%clk 0:43:33]} 38. Qd2 {[%clk 0:03:11]} 38... Rxb1+
{[%clk 0:43:55]} 39. Kh2 {[%clk 0:03:37]} 39... g5 {[%clk 0:43:29]} 40. Ra8+
{[%clk 0:03:18]} 40... Kg7 {[%clk 0:43:46]} 41. Ra5 {[%clk 0:02:43]} 41... Qb7
{[%clk 0:42:57]} 42. e6 {[%clk 0:03:04]} 42... fxe6 {[%clk 0:42:22]} 43. Qe2
{[%clk 0:03:26]} 43... Qb6 {[%clk 0:40:53]} 44. Qe5+ {[%clk 0:03:49]} 44... Kg6
{[%clk 0:41:06]} 45. Ra8 {[%clk 0:03:47]} 45... Bxh3 {[%clk 0:39:03]} 46. Rg8+
{[%clk 0:03:16]} 46... Kh5 {[%clk 0:39:04]} 47. Rxg5+ {[%clk 0:03:28]} 47...
hxg5 {[%clk 0:39:00]} 48. Qh8+ {[%clk 0:03:54]} 48... Kg6 {[%clk 0:39:17]} 49.
Qg8+ {[%clk 0:04:19]} 49... Kf6 {[%clk 0:39:34]} 50. Qf8+ {[%clk 0:04:44]}
1/2-1/2

[Variant "Standard"]
[Site "Europe Echecs"]

[Event "Championnat du monde jeunes U12F"]
[Date "2024.11.20"]
[White "Wang, Tianmu"]
[Black "Ahmed Mohamed, Zakaa"]
[WhiteElo "1640"]
[BlackElo "1866"]
[Round "6.28"]
[Result "1/2-1/2"]
[TimeControl "5400+30"]

1. e4 {[%clk 1:30:59]} 1... e5 {[%clk 1:30:51]} 2. Nf3 {[%clk 1:31:17]} 2... d6
{[%clk 1:31:14]} 3. d4 {[%clk 1:31:37]} 3... exd4 {[%clk 1:31:38]} 4. Nxd4
{[%clk 1:31:55]} 4... Nf6 {[%clk 1:31:58]} 5. Nc3 {[%clk 1:31:08]} 5... Be7
{[%clk 1:32:16]} 6. Bc4 {[%clk 1:28:27]} 6... O-O {[%clk 1:32:33]} 7. O-O {[%clk
1:28:08]} 7... Nxe4 {[%clk 1:26:04]} 8. Nxe4 {[%clk 1:24:55]} 8... d5 {[%clk
1:26:23]} 9. Bd3 {[%clk 1:21:33]} 9... dxe4 {[%clk 1:26:42]} 10. Bxe4 {[%clk
1:21:08]} 10... Bf6 {[%clk 1:20:51]} 11. Nb5 {[%clk 1:12:44]} 11... Qe7 {[%clk
1:15:26]} 12. Qd3 {[%clk 1:09:51]} 12... g6 {[%clk 1:08:50]} 13. Bf4 {[%clk
1:06:11]} 13... Na6 {[%clk 1:04:11]} 14. Rfe1 {[%clk 0:55:56]} 14... Re8 {[%clk
0:53:17]} 15. Qg3 {[%clk 0:41:27]} 15... Bf5 {[%clk 0:47:15]} 16. Nc3 {[%clk
0:32:31]} 16... Bxc3 {[%clk 0:42:39]} 17. Qxc3 {[%clk 0:29:03]} 17... Bxe4
{[%clk 0:42:46]} 18. f3 {[%clk 0:29:19]} 18... Qc5+ {[%clk 0:42:36]} 19. Qxc5
{[%clk 0:29:17]} 19... Nxc5 {[%clk 0:42:59]} 20. fxe4 {[%clk 0:29:40]} 20...
Rxe4 {[%clk 0:41:58]} 21. Bxc7 {[%clk 0:28:42]} 21... Rae8 {[%clk 0:40:50]} 22.
Kf2 {[%clk 0:24:11]} 22... Rxe1 {[%clk 0:38:39]} 23. Rxe1 {[%clk 0:24:32]} 23...
Ne4+ {[%clk 0:39:04]} 24. Kg1 {[%clk 0:23:16]} 24... f5 {[%clk 0:39:24]} 25. Rd1
{[%clk 0:22:22]} 25... Re7 {[%clk 0:38:10]} 26. Bd8 {[%clk 0:19:33]} 26... Re5
{[%clk 0:32:03]} 27. c4 {[%clk 0:18:23]} 1/2-1/2

[Variant "Standard"]
[Site "Europe Echecs"]

[Event "Championnat du monde jeunes U12F"]
[Date "2024.11.20"]
[White "Ordonez Alarcon, Daniela"]
[Black "Lukin, Yesenia"]
[WhiteElo "1606"]
[BlackElo "1732"]
[Round "6.29"]
[Result "1/2-1/2"]
[TimeControl "5400+30"]

1. d4 {[%clk 1:30:58]} 1... Nf6 {[%clk 1:30:53]} 2. c4 {[%clk 1:31:16]} 2... e6
{[%clk 1:31:14]} 3. Nc3 {[%clk 1:31:26]} 3... d5 {[%clk 1:31:33]} 4. Nf3 {[%clk
1:31:08]} 4... c6 {[%clk 1:31:23]} 5. e3 {[%clk 1:31:32]} 5... Nbd7 {[%clk
1:30:38]} 6. Qc2 {[%clk 1:30:42]} 6... h6 {[%clk 1:28:12]} 7. Be2 {[%clk
1:29:26]} 7... Bd6 {[%clk 1:27:48]} 8. b3 {[%clk 1:26:21]} 8... O-O {[%clk
1:20:31]} 9. Bb2 {[%clk 1:22:04]} 9... b6 {[%clk 1:14:33]} 10. O-O {[%clk
1:20:57]} 10... Bb7 {[%clk 1:12:29]} 11. Rad1 {[%clk 1:13:54]} 11... Qc7 {[%clk
1:11:43]} 12. Rfe1 {[%clk 1:09:50]} 12... dxc4 {[%clk 1:02:19]} 13. bxc4 {[%clk
1:03:45]} 13... c5 {[%clk 1:00:23]} 14. d5 {[%clk 0:58:26]} 14... Rfe8 {[%clk
0:55:43]} 15. Nb5 {[%clk 0:50:52]} 15... Qb8 {[%clk 0:53:38]} 16. Nxd6 {[%clk
0:48:16]} 16... Qxd6 {[%clk 0:53:33]} 17. e4 {[%clk 0:45:24]} 17... Qf4 {[%clk
0:43:55]} 18. Bd3 {[%clk 0:37:04]} 18... exd5 {[%clk 0:36:47]} 19. cxd5 {[%clk
0:34:49]} 19... Rad8 {[%clk 0:33:37]} 20. Qd2 {[%clk 0:26:46]} 20... Qxd2 {[%clk
0:29:12]} 21. Nxd2 {[%clk 0:27:07]} 21... Ne5 {[%clk 0:28:56]} 22. Bb5 {[%clk
0:24:38]} 22... Nfd7 {[%clk 0:20:04]} 23. f4 {[%clk 0:19:51]} 23... a6 {[%clk
0:16:16]} 24. Bxd7 {[%clk 0:16:14]} 24... Nxd7 {[%clk 0:16:20]} 25. Nc4 {[%clk
0:16:29]} 25... Re7 {[%clk 0:11:23]} 26. e5 {[%clk 0:14:11]} 26... b5 {[%clk
0:09:24]} 27. Na5 {[%clk 0:14:32]} 27... Nb6 {[%clk 0:07:47]} 28. d6 {[%clk
0:12:58]} 28... Red7 {[%clk 0:08:11]} 29. Nxb7 {[%clk 0:13:11]} 29... Rxb7
{[%clk 0:08:25]} 30. f5 {[%clk 0:12:00]} 30... Nc4 {[%clk 0:07:02]} 31. Bc1
{[%clk 0:11:45]} 31... Kf8 {[%clk 0:07:01]} 32. Rd5 {[%clk 0:11:23]} 32... f6
{[%clk 0:04:46]} 33. exf6 {[%clk 0:08:16]} 33... gxf6 {[%clk 0:05:05]} 34. Bxh6+
{[%clk 0:08:39]} 34... Kf7 {[%clk 0:05:11]} 35. Bf4 {[%clk 0:09:04]} 35... Rb6
{[%clk 0:05:07]} 36. Re6 {[%clk 0:07:43]} 36... Rc6 {[%clk 0:05:22]} 37. Re7+
{[%clk 0:06:57]} 37... Kg8 {[%clk 0:05:30]} 38. Rc7 {[%clk 0:05:56]} 38... Nb6
{[%clk 0:04:40]} 39. Rxc5 {[%clk 0:05:32]} 39... Rxc7 {[%clk 0:03:54]} 40. dxc7
{[%clk 0:05:37]} 40... Rc8 {[%clk 0:03:39]} 41. Rc6 {[%clk 0:05:38]} 41... Nd5
{[%clk 0:03:47]} 42. Bg3 {[%clk 0:05:23]} 42... a5 {[%clk 0:04:00]} 43. Rd6
{[%clk 0:05:37]} 43... Nxc7 {[%clk 0:04:17]} 44. Rxf6 {[%clk 0:05:44]} 44... Ne8
{[%clk 0:03:57]} 45. Rb6 {[%clk 0:03:43]} 45... b4 {[%clk 0:04:13]} 46. Bf4
{[%clk 0:03:12]} 46... Rc4 {[%clk 0:03:58]} 47. g3 {[%clk 0:02:59]} 47... Ng7
{[%clk 0:03:57]} 48. Ra6 {[%clk 0:02:19]} 48... Rc5 {[%clk 0:04:01]} 49. g4
{[%clk 0:01:23]} 49... Rc4 {[%clk 0:04:11]} 50. Bg3 {[%clk 0:00:36]} 50... Rxg4
{[%clk 0:04:07]} 51. Rxa5 {[%clk 0:00:59]} 51... Rg5 {[%clk 0:04:30]} 52. Rb5
{[%clk 0:00:42]} 52... Nxf5 {[%clk 0:03:48]} 53. Kf2 {[%clk 0:01:02]} 53... Rh5
{[%clk 0:03:04]} 54. Rxb4 {[%clk 0:00:49]} 54... Nxg3 {[%clk 0:03:28]} 55. Kxg3
{[%clk 0:00:58]} 55... Ra5 {[%clk 0:03:53]} 56. a4 {[%clk 0:01:22]} 56... Kh7
{[%clk 0:04:14]} 57. Kg4 {[%clk 0:01:36]} 57... Kh6 {[%clk 0:04:38]} 58. h4
{[%clk 0:01:44]} 58... Kg6 {[%clk 0:04:57]} 59. Rb6+ {[%clk 0:01:33]} 59... Kg7
{[%clk 0:05:08]} 60. Rb4 {[%clk 0:02:01]} 60... Kg6 {[%clk 0:05:27]} 61. Kf3
{[%clk 0:02:23]} 61... Kf6 {[%clk 0:04:19]} 62. Ke3 {[%clk 0:02:50]} 62... Ke6
{[%clk 0:04:20]} 63. Kd3 {[%clk 0:03:17]} 63... Kd6 {[%clk 0:04:28]} 64. Kc3
{[%clk 0:03:39]} 64... Kc6 {[%clk 0:04:28]} 65. Kb3 {[%clk 0:04:01]} 65... Rh5
{[%clk 0:04:34]} 66. Rg4 {[%clk 0:03:37]} 66... Kb6 {[%clk 0:04:24]} 67. Kb4
{[%clk 0:03:59]} 67... Ka6 {[%clk 0:03:46]} 68. Rg6+ {[%clk 0:04:10]} 68... Kb7
{[%clk 0:03:58]} 69. Rg7+ {[%clk 0:03:12]} 69... Kb6 {[%clk 0:04:12]} 70. Rg6+
{[%clk 0:03:34]} 70... Kb7 {[%clk 0:04:36]} 71. Rg4 {[%clk 0:03:54]} 71... Ka6
{[%clk 0:04:28]} 72. a5 {[%clk 0:03:54]} 72... Rb5+ {[%clk 0:04:32]} 73. Kc4
{[%clk 0:03:42]} 73... Rxa5 {[%clk 0:04:30]} 74. Rg6+ {[%clk 0:03:44]} 74... Kb7
{[%clk 0:04:30]} 75. Kb4 {[%clk 0:04:03]} 75... Rh5 {[%clk 0:04:28]} 1/2-1/2

[Variant "Standard"]
[Site "Europe Echecs"]